bitfinex/quotes_BTCUSD_20251224
["timestamp","ask_amount","ask_price","bid_price","bid_amount"]
[1766598848464,0.05724,87379.0,87371.0,0.01155544]
[1766598848664,0.05724,87379.0,87372.0,0.01144531]
[1766598848870,0.05724,87379.0,87371.0,0.06878253]
[1766598849318,0.05724,87379.0,87371.0,0.01155544]
[1766598849532,0.05724,87379.0,87372.0,0.06867177]
[1766598849744,0.05724,87379.0,87373.0,0.05722585]
[1766598849951,0.05724,87379.0,87374.0,0.01144505]
[1766598850163,0.05724,87379.0,87373.0,0.06867103]
[1766598850392,0.12021,87378.0,87365.0,0.22892295]
[1766598850613,0.01144492,87375.0,87365.0,0.00010643]
[1766598850875,0.01148,87374.0,87365.0,0.00010643]
[1766598851068,0.01148,87374.0,87366.0,0.0114461]
[1766598851238,0.13169,87374.0,87366.0,0.0114461]
[1766598851404,0.13169,87374.0,87365.0,0.01155266]
[1766598852016,0.13169,87374.0,87366.0,0.0114461]
[1766598852660,0.2003604,87374.0,87365.0,0.01155266]
[1766598852870,0.2003604,87374.0,87365.0,0.00010643]
[1766598852871,0.06867277,87371.0,87365.0,0.00010643]
[1766598853302,0.13169,87374.0,87371.0,0.05722714]
[1766598853569,0.04576,87379.0,87376.0,0.01144479]
[1766598853778,0.01148,87378.0,87375.0,0.06866887]
[1766598854025,0.01148,87378.0,87374.0,0.01144505]
[1766598854189,0.01148,87378.0,87375.0,0.01144492]
[1766598854537,0.010931,87378.0,87375.0,0.01144492]
[1766598854959,0.010931,87378.0,87372.0,0.01144531]
[1766598855592,0.010931,87378.0,87371.0,0.01144544]
[1766598855593,0.010931,87378.0,87373.0,0.01144518]
[1766598855795,0.010931,87378.0,87371.0,0.01144544]
[1766598855996,0.010931,87378.0,87372.0,0.01144531]
[1766598856208,0.010931,87378.0,87371.0,0.01144544]
[1766598856613,0.010931,87378.0,87374.0,0.05722516]
[1766598856963,0.010931,87378.0,87375.0,0.01144492]
[1766598857161,0.010931,87378.0,87374.0,0.01144505]
[1766598857439,0.010931,87378.0,87375.0,0.01144492]
[1766598857865,0.010931,87378.0,87373.0,0.06867091]
[1766598858065,0.010931,87378.0,87374.0,0.01144505]
[1766598858544,0.010931,87378.0,87372.0,0.06867132]
[1766598858702,0.010931,87378.0,87373.0,0.01144518]
[1766598859398,0.010931,87378.0,87356.0,0.07325923]
[1766598859608,0.010931,87378.0,87367.0,0.01144596]
[1766598860191,0.01144479,87376.0,87367.0,0.01144596]
[1766598860391,0.01144505,87374.0,87365.0,0.00010643]
[1766598860601,0.01148,87373.0,87365.0,0.00010643]
[1766598860817,0.01148,87373.0,87365.0,0.05733698]
[1766598861031,0.01148,87373.0,87367.0,0.01144596]
[1766598861239,0.14313518,87373.0,87365.0,0.00010643]
[1766598861446,0.13169,87373.0,87365.0,0.00010643]
[1766598861706,0.13169,87373.0,87365.0,0.01155266]
[1766598861901,0.13169,87373.0,87366.0,0.06867658]
[1766598863130,0.13169,87373.0,87367.0,0.01144596]
[1766598863336,0.13169,87373.0,87366.0,0.06867658]
[1766598863956,0.13169,87373.0,87366.0,0.0114461]
[1766598864167,0.13169,87373.0,87365.0,0.01155266]
[1766598864372,0.13169,87373.0,87366.0,0.0114461]
[1766598864574,0.13169,87373.0,87367.0,0.01144596]
[1766598864783,0.13169,87373.0,87366.0,0.0114461]
[1766598865089,0.13169,87373.0,87367.0,0.01144596]
[1766598865308,0.13169,87373.0,87366.0,0.06867618]
[1766598865456,0.13169,87373.0,87366.0,0.06867649]
[1766598865808,0.000439,87366.0,87365.0,0.00010643]
[1766598866033,0.01144636,87364.0,87354.0,0.01144767]
[1766598866171,0.12021,87363.0,87356.0,0.01144741]
[1766598866359,0.12021,87363.0,87355.0,0.01155754]
[1766598866557,0.1201,87363.0,87356.0,0.05723704]
[1766598866817,0.1201,87363.0,87357.0,0.01144727]
[1766598867226,0.1201,87363.0,87356.0,0.06868445]
[1766598867404,0.1201,87363.0,87355.0,0.068795]
[1766598867607,0.1201,87363.0,87356.0,0.01144741]
[1766598867766,0.1201,87363.0,87356.0,0.06868444]
[1766598867995,0.1659,87363.0,87358.0,0.01144714]
[1766598869029,0.1659,87363.0,87356.0,0.01144741]
[1766598869227,0.17734649,87363.0,87355.0,0.00011]
[1766598869468,0.05724649,87363.0,87355.0,0.00011]
[1766598869673,0.11976,87362.0,87355.0,0.01155754]
[1766598869892,0.13124,87361.0,87355.0,0.01155754]
[1766598870051,0.13124,87361.0,87356.0,0.01144741]
[1766598870268,0.13124,87361.0,87357.0,0.01144727]
[1766598870991,1e-08,87361.0,87358.0,0.01144714]
[1766598871153,1e-08,87363.0,87362.0,0.05723312]
[1766598871352,0.01148,87363.0,87361.0,0.01144675]
[1766598871560,0.01148,87363.0,87361.0,0.05723375]
[1766598871784,1.36e-06,87364.0,87363.0,0.05723246]
[1766598872331,0.01148,87364.0,87361.0,0.06868039]
[1766598873322,0.01148,87364.0,87360.0,0.01144688]
[1766598873518,0.01148,87364.0,87361.0,0.01144675]
[1766598873739,0.01148,87364.0,87360.0,0.01144688]
[1766598873937,0.01148,87364.0,87359.0,0.06868175]
[1766598874262,0.01148,87364.0,87360.0,0.01144688]
[1766598874426,0.01148,87364.0,87361.0,0.01144675]
[1766598874633,0.01148,87364.0,87359.0,0.01144701]
[1766598874860,0.01148,87364.0,87361.0,0.01144675]
[1766598875465,0.01148,87364.0,87360.0,0.01144688]
[1766598876062,0.01148,87364.0,87361.0,0.01144675]
[1766598876928,0.01148,87364.0,87361.0,0.06868049]
[1766598878279,0.01148,87364.0,87360.0,0.06868129]
[1766598878541,0.01148,87364.0,87360.0,0.01144688]
[1766598878745,0.01148,87364.0,87359.0,0.06868186]
[1766598878936,0.01148,87364.0,87360.0,0.01144688]
[1766598879399,0.01148,87364.0,87358.0,0.05723568]
[1766598879569,0.01148,87364.0,87351.0,0.22895916]
[1766598879570,0.000549,87360.0,87355.0,0.05734752]
[1766598879772,0.01148,87359.0,87356.0,0.01144741]
[1766598879979,0.01148,87359.0,87355.0,0.06879506]
[1766598880235,1.36e-06,87367.0,87355.0,0.00011]
[1766598880509,0.16556,87383.0,87372.0,0.01144531]
[1766598880732,0.16556,87383.0,87355.0,0.00011]
[1766598880733,0.022924,87382.0,87370.0,0.01144557]
[1766598880890,0.00048101,87370.0,87363.0,0.01144649]
[1766598881232,0.01151456,87370.0,87360.0,0.05723386]
[1766598881443,0.01144583,87368.0,87359.0,0.01144701]
[1766598881616,6.899e-05,87370.0,87361.0,0.0572332]
[1766598881821,6.899e-05,87370.0,87368.0,6.8e-05]
[1766598882225,0.0114457,87369.0,87360.0,0.01144688]
[1766598882383,0.0114457,87369.0,87356.0,0.05723681]
[1766598882584,0.18422479,87369.0,87358.0,0.05723569]
[1766598882819,0.01144583,87368.0,87359.0,0.01144701]
[1766598882976,0.06867505,87368.0,87358.0,0.06868283]
[1766598883526,0.18422424,87369.0,87359.0,0.01144701]
[1766598883738,0.11555,87369.0,87360.0,0.01144688]
[1766598883938,0.1269957,87369.0,87360.0,0.01144688]
[1766598885142,0.11555,87369.0,87362.0,0.01144662]
[1766598885340,0.11555,87369.0,87360.0,0.06868127]
[1766598885924,0.0114461,87366.0,87356.0,0.05723581]
[1766598886120,0.01148,87365.0,87359.0,0.01144701]
[1766598886544,0.01148,87365.0,87359.0,0.0686818]
[1766598886800,0.01148,87365.0,87359.0,0.01144701]
[1766598887615,0.01148,87365.0,87360.0,0.01144688]
[1766598887803,0.01148,87365.0,87361.0,0.06868034]
[1766598888226,0.01148,87365.0,87360.0,0.06868109]
[1766598888403,0.01148,87365.0,87359.0,0.01144701]
[1766598889170,0.01148,87365.0,87357.0,0.06868314]
[1766598889369,0.01144636,87364.0,87355.0,0.00011]
[1766598889692,0.11555,87356.0,87337.0,0.0572495]
[1766598889892,0.11555,87354.0,87346.0,0.0686918]
[1766598890217,0.11555,87354.0,87348.0,0.01144845]
[1766598890419,0.11555,87352.0,87345.0,0.00011]
[1766598890627,0.000371,87348.0,87345.0,0.00011]
[1766598890854,0.01148,87347.0,87345.0,0.00011]
[1766598890999,0.010752,87347.0,87345.0,0.00011]
[1766598891397,0.010752,87347.0,87345.0,0.05735423]
[1766598891603,0.010752,87347.0,87345.0,0.00011]
[1766598893260,0.01148,87347.0,87346.0,0.01144872]
[1766598893464,0.01148,87362.0,87357.0,0.01144727]
[1766598893697,0.11555,87373.0,87357.0,0.01144727]
[1766598893698,0.01148,87364.0,87361.0,0.01144675]
[1766598893853,0.01148,87364.0,87362.0,0.06867919]
[1766598894055,0.000549,87362.0,87361.0,0.06868052]
[1766598894255,0.00055,87361.0,87349.0,0.01144832]
[1766598894466,0.01144754,87355.0,87345.0,0.05735413]
[1766598894666,0.11555,87354.0,87345.0,0.01155885]
[1766598894867,0.11555,87354.0,87346.0,0.01144872]
[1766598895087,0.11555,87354.0,87345.0,0.01155885]
[1766598895400,0.11555,87354.0,87346.0,0.01144872]
[1766598895747,0.11555,87354.0,87345.0,0.06825401]
[1766598895949,0.11555,87354.0,87346.0,0.01144872]
[1766598896488,0.01144819,87350.0,87339.0,0.01148]
[1766598896657,0.06868844,87351.0,87341.0,0.01144937]
[1766598896862,0.01148,87350.0,87343.0,0.01144911]
[1766598897065,0.01148,87350.0,87344.0,0.01144898]
[1766598897265,0.01148,87350.0,87345.0,0.01144885]
[1766598897471,0.01148,87350.0,87345.0,0.06869257]
[1766598897867,0.12703,87350.0,87345.0,2.99e-06]
[1766598898047,0.12703,87350.0,87346.0,0.06869211]
[1766598898048,0.01148,87350.0,87346.0,0.06869211]
[1766598898243,0.01148,87350.0,87347.0,0.01144859]
[1766598898462,0.010931,87350.0,87347.0,0.06869036]
[1766598898665,0.010931,87350.0,87347.0,0.01144859]
[1766598898862,0.010931,87350.0,87349.0,0.05724163]
[1766598900292,0.010931,87350.0,87322.0,0.03175]
[1766598900293,0.01144898,87344.0,87322.0,0.03175]
[1766598900551,0.11738,87338.0,87323.0,0.01145173]
[1766598900686,0.11738,87345.0,87337.0,0.0114499]
[1766598900884,0.11738,87345.0,87336.0,1.6e-07]
[1766598900885,0.01148,87344.0,87336.0,1.6e-07]
[1766598901084,0.01148,87343.0,87336.0,0.06869972]
[1766598901427,0.01144819,87350.0,87336.0,0.06869972]
[1766598901428,0.01144767,87354.0,87342.0,0.01144924]
[1766598901657,0.01144754,87355.0,87336.0,0.07752016]
[1766598901876,0.01144924,87342.0,87336.0,1.6e-07]
[1766598902065,0.06869761,87340.0,87336.0,1.6e-07]
[1766598902268,0.00010635,87342.0,87336.0,1.6e-07]
[1766598902269,0.01155559,87342.0,87336.0,1.6e-07]
[1766598902470,0.00010635,87342.0,87336.0,1.6e-07]
[1766598903389,0.01144937,87341.0,87336.0,1.6e-07]
[1766598903590,0.11738,87337.0,87336.0,1.6e-07]
[1766598903751,0.1746295,87337.0,87336.0,1.6e-07]
[1766598904889,0.11738,87337.0,87336.0,1.6e-07]
[1766598906144,0.1746295,87337.0,87336.0,1.6e-07]
[1766598906871,0.01145094,87329.0,87319.0,0.06559]
[1766598907076,0.00055,87319.0,87313.0,0.01145304]
[1766598907276,0.00055,87319.0,87308.0,0.0114537]
[1766598907277,0.01145331,87311.0,87301.0,0.01145462]
[1766598907479,0.01145304,87313.0,87302.0,0.05727244]
[1766598907662,0.01145317,87312.0,87303.0,0.01145436]
[1766598907871,0.01145304,87313.0,87302.0,0.06872693]
[1766598908052,0.11738,87314.0,87304.0,0.01145422]
[1766598908353,0.01145304,87313.0,87304.0,0.01145422]
[1766598908576,0.01145317,87312.0,87304.0,0.00035419]
[1766598908855,0.01145357,87309.0,87304.0,0.00035419]
[1766598909070,0.0114537,87308.0,87304.0,0.00035419]
[1766598909278,0.01145108,87328.0,87319.0,0.01145226]
[1766598909503,0.12883094,87329.0,87312.0,0.22906237]
[1766598909504,0.01148,87327.0,87312.0,0.22906237]
[1766598909698,0.01148,87327.0,87322.0,0.01145186]
[1766598909863,0.01148,87327.0,87320.0,0.06871259]
[1766598910188,0.01145213,87320.0,87309.0,0.06559]
[1766598910361,0.05726327,87316.0,87306.0,0.01145396]
[1766598910544,0.01145252,87317.0,87305.0,0.08020449]
[1766598910889,0.01145265,87316.0,87306.0,0.05726958]
[1766598911098,0.01145252,87317.0,87308.0,0.0114537]
[1766598911469,0.01148,87319.0,87309.0,0.01145357]
[1766598911792,0.010931,87319.0,87316.0,0.01145265]
[1766598912222,0.01148,87323.0,87317.0,0.01145252]
[1766598912432,0.01145108,87328.0,87317.0,0.0687151]
[1766598912601,0.01148,87327.0,87318.0,0.06871411]
[1766598912781,0.01148,87327.0,87319.0,0.01145226]
[1766598913851,0.01148,87327.0,87318.0,0.06871418]
[1766598913995,0.02293121,87327.0,87317.0,0.01145252]
[1766598914647,0.01145134,87326.0,87317.0,0.01145252]
[1766598915152,0.02293121,87327.0,87317.0,0.01145252]
[1766598915317,0.02293121,87327.0,87318.0,0.01145239]
[1766598915935,0.08018744,87327.0,87317.0,0.01145252]
[1766598916599,0.08018744,87327.0,87318.0,0.01145239]
[1766598916799,0.06870817,87326.0,87316.0,0.06871531]
[1766598917258,0.000549,87316.0,87315.0,0.01145278]
[1766598917492,0.12883134,87326.0,87316.0,0.01145265]
[1766598917692,0.11738,87326.0,87316.0,0.06871531]
[1766598917858,0.11738,87326.0,87317.0,0.01145252]
[1766598918484,0.11738,87326.0,87318.0,0.01145239]
[1766598918694,0.11738,87326.0,87317.0,0.06871513]
[1766598918892,0.11738,87326.0,87318.0,0.01145239]
[1766598919122,0.11738,87326.0,87317.0,0.06871513]
[1766598919371,0.11738,87326.0,87317.0,0.01145252]
[1766598919561,0.11738,87326.0,87318.0,0.01145239]
[1766598919913,0.12883029,87334.0,87320.0,0.01145213]
[1766598920141,0.01148,87333.0,87325.0,0.05725727]
[1766598920314,0.01148,87333.0,87320.0,0.01145213]
[1766598920315,0.01148,87333.0,87323.0,0.01145173]
[1766598920581,0.01145068,87331.0,87320.0,0.06871259]
[1766598920746,0.000549,87323.0,87317.0,0.06871504]
[1766598920965,0.01148,87328.0,87319.0,0.01145226]
[1766598921165,0.01148,87328.0,87320.0,0.0687127]
[1766598921376,0.01148,87328.0,87320.0,0.01145213]
[1766598922133,0.01148,87328.0,87318.0,0.01145239]
[1766598922352,0.02293108,87328.0,87319.0,0.01145226]
[1766598922582,0.01148,87328.0,87319.0,0.01145226]
[1766598922802,0.01148,87328.0,87320.0,0.06871274]
[1766598923011,0.01148,87328.0,87319.0,0.0572607]
[1766598923228,0.02293108,87328.0,87318.0,0.05726188]
[1766598923467,0.02293108,87328.0,87319.0,0.01145226]
[1766598923691,0.08018658,87328.0,87318.0,0.06871427]
[1766598923904,0.02293108,87328.0,87319.0,0.01145226]
[1766598924338,0.07964982,87328.0,87318.0,0.06871427]
[1766598924622,0.07964982,87328.0,87319.0,0.01145226]
[1766598924845,0.01145147,87325.0,87318.0,0.00011]
[1766598925274,0.01145134,87326.0,87318.0,0.00011]
[1766598925509,0.01145121,87327.0,87318.0,0.00011]
[1766598925932,0.01145121,87327.0,87318.0,0.01156239]
[1766598926132,0.01145121,87327.0,87318.0,0.00011]
[1766598926350,0.00011,87318.0,87307.0,0.01145383]
[1766598926540,0.01145265,87316.0,87306.0,0.06872324]
[1766598926845,0.11738,87316.0,87307.0,0.01145383]
[1766598927055,0.18609646,87316.0,87306.0,0.01145396]
[1766598927210,0.11738,87316.0,87306.0,0.01145396]
[1766598927417,0.11738,87316.0,87308.0,0.0114537]
[1766598927639,0.08300263,87316.0,87308.0,0.06872215]
[1766598927843,0.01145239,87318.0,87308.0,0.06872215]
[1766598928178,0.06871448,87318.0,87309.0,0.01145357]
[1766598928381,0.01145226,87319.0,87309.0,0.06872089]
[1766598928543,0.01145226,87319.0,87310.0,0.01145344]
[1766598929150,0.05726261,87317.0,87307.0,0.01145383]
[1766598929349,0.01145265,87316.0,87307.0,0.01145383]
[1766598929889,0.18849362,87319.0,87309.0,0.01145357]
[1766598930299,0.000549,87309.0,87306.0,0.01145396]
[1766598930456,0.000549,87309.0,87307.0,0.05726867]
[1766598930654,0.11978,87318.0,87309.0,0.01145357]
[1766598930863,0.01145252,87317.0,87308.0,0.06872222]
[1766598931273,0.06871439,87318.0,87308.0,0.06872222]
[1766598931501,0.11978,87317.0,87308.0,0.06872222]
[1766598931700,0.11978,87317.0,87310.0,0.01145344]
[1766598931903,0.11978,87317.0,87309.0,0.01145357]
[1766598932293,0.01145344,87310.0,87304.0,0.01183419]
[1766598932488,0.06872241,87308.0,87304.0,0.00035419]
[1766598932643,0.06927157,87309.0,87304.0,0.00035419]
[1766598932644,0.00055,87309.0,87304.0,0.00035419]
[1766598932804,0.01145357,87309.0,87304.0,0.00035419]
[1766598933009,0.0114537,87308.0,87304.0,0.00035419]
[1766598933212,0.0687216,87309.0,87304.0,0.00035419]
[1766598933417,0.01145383,87307.0,87304.0,4.19e-06]
[1766598933615,0.11978,87306.0,87300.0,0.0002]
[1766598933842,0.13161453,87306.0,87300.0,0.0002]
[1766598934085,0.0002,87300.0,87290.0,0.0002]
[1766598934330,0.11978,87297.0,87290.0,0.01145606]
[1766598934542,0.11978,87297.0,87291.0,0.01145593]
[1766598934974,0.11978,87297.0,87293.0,0.01145567]
[1766598935199,0.11978,87297.0,87292.0,0.06873473]
[1766598935388,0.119231,87297.0,87292.0,0.06873473]
[1766598935533,0.119231,87297.0,87292.0,0.0114558]
[1766598935887,0.119231,87297.0,87294.0,0.01145554]
[1766598936046,0.119231,87297.0,87294.0,0.06873304]
[1766598936261,0.01148,87299.0,87294.0,0.01145554]
[1766598936889,0.01148,87299.0,87291.0,0.05727908]
[1766598937131,0.01148,87299.0,87292.0,0.0114558]
[1766598937315,0.00055,87291.0,87285.0,0.01145672]
[1766598937542,0.00055,87291.0,87282.0,0.06874214]
[1766598937737,0.01148,87292.0,87282.0,0.06874214]
[1766598937738,0.0229358,87292.0,87282.0,0.06874214]
[1766598937908,0.0229358,87292.0,87283.0,0.01145698]
[1766598938086,0.0229358,87292.0,87282.0,0.06874214]
[1766598938284,0.0229358,87292.0,87282.0,0.01145711]
[1766598938285,0.01145593,87291.0,87282.0,0.01145711]
[1766598938485,0.0229358,87292.0,87282.0,0.06874267]
[1766598938689,0.01145606,87290.0,87281.0,0.01145724]
[1766598938888,0.01145606,87290.0,87280.0,0.05728635]
[1766598939330,0.01145632,87288.0,87279.0,0.0114575]
[1766598939777,0.06873721,87289.0,87279.0,0.0114575]
[1766598939969,0.01145619,87289.0,87280.0,0.01145737]
[1766598940171,0.06873653,87290.0,87281.0,0.01145724]
[1766598940351,0.01145619,87289.0,87280.0,0.01145737]
[1766598940560,0.06873653,87290.0,87281.0,0.01145724]
[1766598941087,0.06873566,87291.0,87281.0,0.01145724]
[1766598941262,0.01145606,87290.0,87280.0,0.0687442]
[1766598941457,0.01145593,87291.0,87281.0,0.01145724]
[1766598941659,0.01145593,87291.0,87282.0,0.01145711]
[1766598942392,0.19999545,87292.0,87283.0,0.01145698]
[1766598942586,0.19999545,87292.0,87281.0,0.01145724]
[1766598942587,0.01145593,87291.0,87281.0,0.0687433]
[1766598943064,0.13126,87292.0,87284.0,0.01145685]
[1766598943265,0.01148,87292.0,87286.0,0.01145659]
[1766598943791,0.01145409,87305.0,87293.0,0.01145567]
[1766598943992,0.01145409,87305.0,87287.0,0.01145645]
[1766598943993,0.01145501,87298.0,87288.0,0.11953]
[1766598944218,0.01148,87298.0,87289.0,0.01145619]
[1766598944352,0.01148,87298.0,87290.0,0.01145606]
[1766598944732,0.01148,87298.0,87289.0,0.06873706]
[1766598944733,0.02293501,87298.0,87289.0,0.06873706]
[1766598944900,0.01148,87298.0,87289.0,0.06873706]
[1766598945308,0.01148,87298.0,87291.0,0.05727959]
[1766598945603,0.01148,87298.0,87292.0,0.0114558]
[1766598945804,0.01148,87298.0,87291.0,0.06873557]
[1766598946006,0.01148,87298.0,87291.0,0.01145593]
[1766598946215,0.01148,87298.0,87292.0,0.0114558]
[1766598946503,0.01148,87298.0,87291.0,0.01145593]
[1766598946666,0.01148,87298.0,87290.0,0.11953]
[1766598946866,0.02293501,87298.0,87290.0,0.11953]
[1766598947322,0.01148,87298.0,87290.0,0.13098606]
[1766598947499,0.01148,87298.0,87290.0,0.11953]
[1766598947702,0.02293501,87298.0,87290.0,0.11953]
[1766598948096,0.01148,87298.0,87290.0,0.11953]
[1766598948299,0.01148,87298.0,87290.0,0.13098606]
[1766598948500,0.08021064,87298.0,87290.0,0.11953]
[1766598948781,0.02293501,87298.0,87290.0,0.11953]
[1766598948999,0.02293501,87298.0,87289.0,0.01145619]
[1766598949202,0.01148,87298.0,87290.0,0.01145606]
[1766598949514,0.02293501,87298.0,87288.0,0.0687377]
[1766598949868,0.08021011,87298.0,87289.0,0.01145619]
[1766598950068,0.01148,87298.0,87289.0,0.01145619]
[1766598950339,0.02293501,87298.0,87289.0,0.01145619]
[1766598950499,0.01148,87298.0,87290.0,0.01145606]
[1766598950832,0.02293501,87298.0,87289.0,0.06873668]
[1766598950984,0.01148,87298.0,87288.0,0.01145632]
[1766598951167,0.01148,87298.0,87290.0,0.01145606]
[1766598951368,0.01148,87298.0,87290.0,0.06873632]
[1766598951582,0.01148,87298.0,87289.0,0.06873662]
[1766598951781,0.01148,87298.0,87290.0,0.01145606]
[1766598952236,0.01148,87298.0,87291.0,0.01145593]
[1766598952638,0.01148,87298.0,87290.0,0.01145606]
[1766598952789,0.08021028,87298.0,87288.0,0.18826781]
[1766598952984,0.01148,87298.0,87288.0,0.18826781]
[1766598953211,0.01148,87298.0,87290.0,0.01145606]
[1766598953449,0.01148,87298.0,87290.0,0.0687361]
[1766598954006,0.01148,87298.0,87291.0,0.01145593]
[1766598955226,0.01148,87300.0,87291.0,0.11862]
[1766598955428,0.01145488,87299.0,87291.0,0.11862]
[1766598957453,0.01145514,87297.0,87291.0,0.118071]
[1766598957680,0.068731,87297.0,87291.0,0.10960025]
[1766598957855,0.06873059,87298.0,87291.0,0.10960025]
[1766598958060,0.01145527,87296.0,87291.0,0.10960025]
[1766598958349,0.01145527,87296.0,87288.0,0.00011]
[1766598958717,0.01145514,87297.0,87288.0,0.01156632]
[1766598959334,0.01145527,87296.0,87288.0,0.00011]
[1766598959493,0.06873037,87298.0,87288.0,0.00011]
[1766598959494,0.06873037,87298.0,87288.0,0.01156632]
[1766598959958,0.01145501,87298.0,87288.0,0.00011]
[1766598960297,0.01145514,87297.0,87288.0,0.01156632]
[1766598960531,0.01145527,87296.0,87288.0,0.00011]
[1766598960736,0.06873093,87297.0,87288.0,0.01156632]
[1766598960937,0.01145527,87296.0,87288.0,0.00011]
[1766598961149,0.0687301,87298.0,87288.0,0.01156632]
[1766598961373,0.05727584,87297.0,87288.0,0.00011]
[1766598961573,0.05727584,87297.0,87288.0,0.01156632]
[1766598961574,0.01145527,87296.0,87288.0,0.01156632]
[1766598961936,0.06873098,87297.0,87288.0,0.01156632]
[1766598962133,0.01145501,87298.0,87289.0,0.01145619]
[1766598962360,0.01145501,87298.0,87288.0,0.01156632]
[1766598962361,0.06873068,87298.0,87288.0,0.06884789]
[1766598962999,0.01148,87300.0,87291.0,0.05727922]
[1766598963170,0.06875396,87300.0,87291.0,0.01145593]
[1766598963373,0.08020871,87300.0,87290.0,0.0687359]
[1766598963756,0.01145488,87299.0,87291.0,0.01145593]
[1766598963997,0.01145488,87299.0,87290.0,0.0687359]
[1766598964475,0.01148,87300.0,87293.0,0.01145567]
[1766598964674,0.01148,87301.0,87294.0,0.01145554]
[1766598964853,0.01148,87301.0,87292.0,0.06873473]
[1766598965069,0.0687535,87301.0,87291.0,0.01145593]
[1766598965372,0.01148,87301.0,87294.0,0.01145554]
[1766598965572,0.02293462,87301.0,87292.0,0.06873477]
[1766598965780,0.01148,87301.0,87293.0,0.01145567]
[1766598965980,0.01148,87301.0,87294.0,0.01145554]
[1766598966605,0.01148,87301.0,87295.0,0.0114554]
[1766598966816,0.01148,87301.0,87294.0,0.01145554]
[1766598967020,0.01148,87301.0,87294.0,0.0687328]
[1766598967226,0.01148,87301.0,87295.0,0.0114554]
[1766598967776,0.01148,87301.0,87293.0,0.06873401]
[1766598967978,0.02293462,87301.0,87292.0,0.17833469]
[1766598968226,0.01148,87301.0,87293.0,0.05727791]
[1766598968630,0.00035453,87306.0,87299.0,0.01145488]
[1766598968853,0.01145317,87312.0,87288.0,0.00011]
[1766598968854,0.01145121,87327.0,87311.0,0.1096]
[1766598969057,0.12980173,87323.0,87312.0,0.02293317]
[1766598969272,0.12980186,87322.0,87312.0,0.010381]
[1766598969478,0.06871417,87319.0,87312.0,0.010381]
[1766598969634,0.01145213,87320.0,87312.0,0.010381]
[1766598969837,0.01145252,87317.0,87304.0,0.01145422]
[1766598970066,0.01145409,87305.0,87295.0,0.12975458]
[1766598970239,0.01145422,87304.0,87295.0,0.13010911]
[1766598970421,0.05727245,87302.0,87295.0,0.00035453]
[1766598970622,0.11835,87299.0,87289.0,0.06873694]
[1766598970826,0.11835,87299.0,87288.0,0.02304632]
[1766598970827,0.05727639,87296.0,87288.0,0.01159]
[1766598971076,0.0114554,87295.0,87288.0,0.01159]
[1766598971254,0.06873166,87296.0,87288.0,0.00011]
[1766598971459,0.11835,87299.0,87288.0,0.01156632]
[1766598971784,0.11835,87299.0,87291.0,0.01145593]
[1766598972143,0.11835,87299.0,87289.0,0.06873698]
[1766598972144,0.12980488,87299.0,87289.0,0.06873698]
[1766598972339,0.01145501,87298.0,87289.0,0.01145619]
[1766598972559,0.01145514,87297.0,87288.0,0.01156632]
[1766598972743,0.01145514,87297.0,87288.0,0.00011]
[1766598972966,0.01145501,87298.0,87288.0,0.01156632]
[1766598973650,0.01145527,87296.0,87288.0,0.00011]
[1766598974045,0.01145501,87298.0,87288.0,0.00011]
[1766598974228,0.01145527,87296.0,87288.0,0.00011]
[1766598974523,0.01145514,87297.0,87288.0,0.01156632]
[1766598974731,0.01145527,87296.0,87288.0,0.00011]
[1766598975100,0.01145619,87289.0,87277.0,0.01145777]
[1766598975300,0.01145619,87289.0,87280.0,0.01145737]
[1766598975649,0.05728062,87290.0,87280.0,0.01145737]
[1766598975650,0.06873668,87290.0,87280.0,0.01145737]
[1766598975803,0.01145619,87289.0,87280.0,0.01145737]
[1766598976000,0.06873668,87290.0,87280.0,0.01145737]
[1766598976203,0.01145606,87290.0,87281.0,0.01145724]
[1766598976545,0.01145606,87290.0,87280.0,0.06874423]
[1766598976887,0.01145606,87290.0,87281.0,0.01145724]
[1766598977089,0.01145606,87290.0,87277.0,0.01156431]
[1766598977090,0.01145685,87284.0,87277.0,0.00010654]
[1766598977288,0.11835,87286.0,87280.0,0.01145737]
[1766598977535,0.11835,87286.0,87277.0,0.01158654]
[1766598977769,0.11835,87286.0,87278.0,0.01145764]
[1766598977974,0.01145672,87285.0,87277.0,0.01158654]
[1766598978307,0.01145685,87284.0,87277.0,0.01158654]
[1766598978615,0.11835,87283.0,87277.0,0.00010654]
[1766598978784,0.22912198,87290.0,87262.0,0.18094867]
[1766598978785,0.01145842,87272.0,87262.0,0.18094867]
[1766598978960,0.01145829,87273.0,87263.0,0.01148]
[1766598979143,0.01145829,87273.0,87263.0,0.02293961]
[1766598979343,0.06874899,87274.0,87264.0,0.01145947]
[1766598979663,0.0114579,87276.0,87270.0,0.00025136]
[1766598979866,0.01145803,87275.0,87270.0,0.00025136]
[1766598980066,0.06874906,87274.0,87270.0,0.00025136]
[1766598980564,0.01145777,87277.0,87270.0,0.00025136]
[1766598980748,0.01145803,87275.0,87270.0,0.00025136]
[1766598980948,0.01145816,87274.0,87270.0,0.00025136]
[1766598981372,0.01145803,87275.0,87270.0,0.00025136]
[1766598981778,0.06874744,87276.0,87270.0,0.00025136]
[1766598982691,0.01145803,87275.0,87270.0,0.00025136]
[1766598982858,0.06874744,87276.0,87270.0,0.00025136]
[1766598983056,0.06874606,87278.0,87270.0,0.00025136]
[1766598983259,0.05728975,87276.0,87270.0,0.00025136]
[1766598983459,0.01145803,87275.0,87270.0,0.00025136]
[1766598983700,0.01145829,87273.0,87270.0,1.36e-06]
[1766598983902,0.06875022,87273.0,87270.0,1.36e-06]
[1766598984304,0.05729214,87272.0,87270.0,1.36e-06]
[1766598984508,0.01145829,87273.0,87270.0,1.36e-06]
[1766598984685,0.05729274,87272.0,87270.0,1.36e-06]
[1766598984881,0.06874997,87273.0,87270.0,1.36e-06]
[1766598985127,0.01145829,87273.0,87270.0,1.36e-06]
[1766598985303,0.01145816,87274.0,87270.0,1.36e-06]
[1766598985519,0.01145777,87277.0,87270.0,1.36e-06]
[1766598985726,0.06874744,87276.0,87270.0,1.36e-06]
[1766598985903,0.01145803,87275.0,87270.0,1.36e-06]
[1766598986104,0.01145777,87277.0,87270.0,1.36e-06]
[1766598986426,0.01145777,87277.0,87265.0,0.01145934]
[1766598986427,0.06875064,87272.0,87260.0,0.13511]
[1766598986683,0.06875064,87272.0,87240.0,0.45850388]
[1766598986684,0.06875774,87263.0,87251.0,0.13511118]
[1766598986928,0.11835,87262.0,87254.0,0.01148]
[1766598987129,0.11835,87262.0,87254.0,0.02294079]
[1766598987303,0.117801,87262.0,87255.0,0.01146066]
[1766598987497,0.117801,87262.0,87261.0,0.0002828]